Cogmind - Beta 12 @@@ ROGUE MODE // 2023.06.10 @ 23:25:19 Player: Mr Goldstein Result: Destroyed by OC-48E(M) with Riot Gun Performance ------------- Evolutions (1) 500 Regions Visited (5) 1000 Robots Destroyed (17) 85 Value Destroyed (151) 151 Prototype IDs (9) 180 Alien Tech Used (0) 0 Bonus (-43) -43 TOTAL SCORE: 1873 Bonus ------- Friendly Fire -43 Cogmind --------- Core Integrity 0/400 Matter 48/300 Energy 99/100 System Corruption 1% Temperature Cool (0) Movement Core (50) Location -7/Zion Parts ------- > --- POWER (1) -------- (None) > --- PROPULSION (3) --- (None) > --- UTILITY (3) ------ Experimental Signal Interpreter Experimental Armor Integrity Analyzer Experimental System Shield > --- WEAPON (2) ------- (None) > --- INVENTORY (5) ---- Tactical Coordination Suite Grenade Launcher Missile Launcher Rocket Array Plasma Cutter Peak State ------------ > --- POWER ------------ (None) > --- PROPULSION ------- Flight Unit Flight Unit > --- UTILITY ---------- Experimental Signal Interpreter Experimental Armor Integrity Analyzer Experimental System Shield > --- WEAPON ----------- Rocket Array > --- INVENTORY -------- Tactical Coordination Suite Grenade Launcher Missile Launcher Plasma Cutter [Rating: 34] Favorites ----------- Power None Propulsion Flight Unit Flight Unit Flight Unit Utility Experimental System Shield Device Tactical Coordination Suite Processor Experimental Armor Integrity Analyzer Hackware Experimental System Shield Weapon Rocket Array Launcher Rocket Array Build | -11 -10 -10 -9 -9 -7 ------- Run | Jun Mat Min Mat Min Zio Slots Evolved 2 | . . . 2 . . Power . | . . . . . . Propulsion 1 | . . . 1 . . Utility 1 | . . . 1 . . Weapon . | . . . . . . Parts Attached 15 | . 1 . . 3 11 Power . | . . . . . . Engine . | . . . . . . Core . | . . . . . . Reactor . | . . . . . . Propulsion 2 | . . . . 2 . Treads . | . . . . . . Leg . | . . . . . . Wheel . | . . . . . . Hover . | . . . . . . Flight 2 | . . . . 2 . Utility 9 | . . . . . 9 Device 1 | . . . . . 1 Storage . | . . . . . . Processor 7 | . . . . . 7 Hackware 1 | . . . . . 1 Protection . | . . . . . . Artifact . | . . . . . . Weapon 4 | . 1 . . 1 2 Energy Gun . | . . . . . . Energy Cannon . | . . . . . . Ballistic Gun . | . . . . . . Ballistic Cannon . | . . . . . . Launcher 4 | . 1 . . 1 2 Special Weapon . | . . . . . . Impact Weapon . | . . . . . . Slashing Weapon . | . . . . . . Piercing Weapon . | . . . . . . Special Melee Weapon . | . . . . . . Unidentified Prototypes 9 | . . . . . 9 Parts Lost 3 | . . . . . 3 Power . | . . . . . . Propulsion 2 | . . . . . 2 Utility . | . . . . . . Weapon 1 | . . . . . 1 Highest Loss Streak 1 | . . . . . 1 To Critical Strikes . | . . . . . . Average Slot Usage (%) 32 | . 2 . . 6 43 Flight 13 | . . . . 4 17 Device 2 | . . . . . 3 Processor 10 | . . . . . 14 Hackware 4 | . . . . . 6 Launcher 1 | . 2 . . 1 1 Naked Turns 191 | . 44 49 28 70 . Heaviest Build 7 | . . . . . 7 Greatest Support 8 | 3 3 3 3 8 8 Greatest Overweight (x) 2 | . . . . . 2 Average Overweight (x) . | . . . . . . Largest Inventory Capacity 5 | 5 5 5 5 5 5 Average Capacity 5 | 5 5 5 5 5 5 Most Carried 5 | . 1 1 1 1 5 Average Carried 3 | . . 1 1 . 4 Final Capacity 5 | 5 5 5 5 5 5 Final Carried 5 | . 1 1 1 1 5 Class Distribution -------------------- 100% | Mutant Dominant Class ---------------- Mutant | -10/Materials Mutant | -10/Mines Mutant | -9/Materials Mutant | -9/Mines Mutant | -7/Zion Resources | -11 -10 -10 -9 -9 -7 ----------- Run | Jun Mat Min Mat Min Zio Matter Collected 291 | 196 . . . 20 75 Remotely . | . . . . . . Salvage Created 121 | . 2 . . 23 96 Parts 24 | . 2 . . 4 18 Haulers Intercepted . | . . . . . . Recyclers Shooed . | . . . . . . Parts Field Recycled . | . . . . . . Retrieved Matter . | . . . . . . Parts Self-Destructed . | . . . . . . Prevented . | . . . . . . Kills | -11 -10 -10 -9 -9 -7 ------- Run | Jun Mat Min Mat Min Zio Combat Hostiles Destroyed 8 | . 3 . . 4 1 AOE 8 | . 3 . . 4 1 Classes Destroyed 2 | . 1 . . . 1 Swarmer 7 | . 3 . . 4 . Zionite 9 | . . . . . 9 Best Kill Streak 9 | . 3 . . 4 9 Combat Bots Only 4 | . 3 . . 4 1 Max Kills in Single Turn 3 | . 2 . . 3 2 Gunslinging . | . . . . . . Exploded 3 | . 2 . . 3 1 Melee . | . . . . . . Uniques/NPCs Destroyed 1 | . . . . . 1 Imprinter (-7/Zion) Combat | -11 -10 -10 -9 -9 -7 -------- Run | Jun Mat Min Mat Min Zio Damage Taken 609 | 3 63 71 45 62 365 Core 522 | 3 47 71 45 50 306 Absorbed by Shields . | . . . . . . Core Remaining (%) 74 | 98 . 51 . . . Volleys Fired 14 | . 3 . . 3 8 Largest 1 | . 1 . . 1 1 Hottest 45 | . 30 . . 30 45 Shots Fired 14 | . 3 . . 3 8 Gun . | . . . . . . Cannon . | . . . . . . Launcher 14 | . 3 . . 3 8 Special . | . . . . . . Kinetic . | . . . . . . Thermal . | . . . . . . Explosive 14 | . 3 . . 3 8 Electromagnetic . | . . . . . . Robot Hit Streak 7 | . 2 . . 3 7 Robot Miss Streak 1 | . . . . . 1 Penetration Max . | . . . . . . Secondary Targets . | . . . . . . Shots Hit Robots 4 | . 2 . . 1 1 Core Hits 29 | . 4 3 . 4 18 Critical Kills . | . . . . . . Critical Parts Destroyed . | . . . . . . Critical Strikes . | . . . . . . Melee Attacks . | . . . . . . Impact . | . . . . . . Slashing . | . . . . . . Piercing . | . . . . . . Sneak Attacks . | . . . . . . Combat Hostiles . | . . . . . . Follow-up Attacks . | . . . . . . Damage Inflicted 991 | 6 207 21 . 249 508 Guns . | . . . . . . Cannons . | . . . . . . Explosions 954 | . 207 . . 249 498 Melee . | . . . . . . Ramming 37 | 6 . 21 . . 10 Kinetic . | . . . . . . Thermal . | . . . . . . Explosive 954 | . 207 . . 249 498 Electromagnetic . | . . . . . . Impact . | . . . . . . Slashing . | . . . . . . Piercing . | . . . . . . Highest Corruption 2 | . 1 2 . . 1 Average Corruption 1 | . 1 1 . . 1 Corruption Purged . | . . . . . . Corruption Blocked . | . . . . . . Effects 1 | . 1 . . . . Data Loss (minor) 1 | . 1 . . . . Overload Shots . | . . . . . . Overflow Damage 20 | . 20 . . . . Projectiles . | . . . . . . Explosions 20 | . 20 . . . . Melee . | . . . . . . Knockbacks . | . . . . . . Impact . | . . . . . . Kinetic . | . . . . . . Secondary . | . . . . . . Self-Inflicted Damage 24 | 3 . 8 . 8 5 Shots 1 | . . . . 1 . Rammed 8 | 1 . 6 . . 1 Targets Rammed 8 | 1 . 6 . . 1 Kicked . | . . . . . . Crushed . | . . . . . . Highest Temperature 2 | . . . . 2 . Average Temperature 2 | . . . . 2 . Received Heat Transfer 98 | . . 36 24 . 38 Siege Activations . | . . . . . . Robots Corrupted . | . . . . . . Combat Hostiles . | . . . . . . Parts Fried . | . . . . . . Impact Corruptions . | . . . . . . Robots Melted . | . . . . . . Combat Hostiles . | . . . . . . Parts Melted . | . . . . . . Heat Transferred . | . . . . . . Parts Sabotaged . | . . . . . . Parts Stolen . | . . . . . . Parts Stripped . | . . . . . . Power Chain Reactions . | . . . . . . Missiles Intercepted . | . . . . . . Alert | -11 -10 -10 -9 -9 -7 ------- Run | Jun Mat Min Mat Min Zio Peak Influence 128 | . 128 79 46 121 . Initial 49 | . . 49 30 17 . Average 49 | . 47 77 36 44 . Maximum Alert Level . | . . . . . . Low Security (%) 100 | 100 100 100 100 100 . Level 1 . | . . . . . . Level 2 . | . . . . . . Level 3 . | . . . . . . Level 4 . | . . . . . . Level 5 . | . . . . . . High Security . | . . . . . . Max Security . | . . . . . . Squads Dispatched . | . . . . . . Investigation . | . . . . . . Extermination . | . . . . . . Reinforcement . | . . . . . . Assault . | . . . . . . Garrison . | . . . . . . Intercept . | . . . . . . Searches Triggered . | . . . . . . Construction Impeded . | . . . . . . Haulers Reinforced . | . . . . . . Active Scanning Responses . | . . . . . . Cargo Convoy Interrupts . | . . . . . . Stealth | -11 -10 -10 -9 -9 -7 --------- Run | Jun Mat Min Mat Min Zio Distress Signals . | . . . . . . Communications Jammed . | . . . . . . Distress Signals . | . . . . . . Times Spotted 60 | . 4 2 2 4 48 Peak Tracking Total 21 | . 3 2 2 4 21 Tactical Retreats 6 | . . . . . 6 Traps | -11 -10 -10 -9 -9 -7 ------- Run | Jun Mat Min Mat Min Zio Traps Triggered . | . . . . . . Indirectly . | . . . . . . Trap Hack Attempts . | . . . . . . Triggered . | . . . . . . Disarmed . | . . . . . . Reprogrammed . | . . . . . . Reused . | . . . . . . Traps Extracted . | . . . . . . Installed . | . . . . . . Triggered . | . . . . . . Machines | -11 -10 -10 -9 -9 -7 ---------- Run | Jun Mat Min Mat Min Zio Machines Disabled . | . . . . . . Max in Single Turn . | . . . . . . Machines Repaired . | . . . . . . Machines Sabotaged . | . . . . . . Overloaded Fab Kills . | . . . . . . Hacking | -11 -10 -10 -9 -9 -7 --------- Run | Jun Mat Min Mat Min Zio Machines Accessed 2 | . 1 . 1 . . Terminals 2 | . 1 . 1 . . Fabricators . | . . . . . . Repair Stations . | . . . . . . Recycling Units . | . . . . . . Scanalyzers . | . . . . . . Garrison Access . | . . . . . . Total Hacks 3 | . 2 . 1 . . Successful 2 | . 1 . 1 . . Failed 1 | . 1 . . . . Catastrophic 1 | . 1 . . . . Database Lockouts . | . . . . . . Manual 2 | . 2 . . . . Terminals 3 | . 2 . 1 . . Fabricators . | . . . . . . Repair Stations . | . . . . . . Recycling Units . | . . . . . . Scanalyzers . | . . . . . . Garrison Access . | . . . . . . Terminal Hacks 1 | . . . 1 . . Branch Access Points 1 | . . . 1 . . Fabricator Hacks . | . . . . . . Repair Station Hacks . | . . . . . . Recycling Unit Hacks . | . . . . . . Scanalyzer . | . . . . . . Garrison Access Hacks . | . . . . . . Unauthorized Hacks 1 | . 1 . . . . Terminals 1 | . 1 . . . . Assimilate 1 | . 1 . . . . Fabricators . | . . . . . . Repair Stations . | . . . . . . Recycling Units . | . . . . . . Scanalyzers . | . . . . . . Garrison Access . | . . . . . . Data Cores Recovered . | . . . . . . Used . | . . . . . . Hacking Detections 2 | . 1 . 1 . . Full Trace Events 1 | . 1 . . . . Feedback Events 1 | . 1 . . . . Corruption 1 | . 1 . . . . Feedback Blocked . | . . . . . . Robot Schematics Acquired 3 | . . . . . 3 Robots Built . | . . . . . . Authchips . | . . . . . . Time . | . . . . . . Total Robot Build Rating . | . . . . . . Part Schematics Acquired 15 | . . . . . 15 Parts Built . | . . . . . . Authchips . | . . . . . . Time . | . . . . . . Total Part Build Rating . | . . . . . . Parts Repaired . | . . . . . . Time . | . . . . . . Parts Recycled . | . . . . . . Recycled Matter . | . . . . . . Retrieved Matter . | . . . . . . Retrieved Components . | . . . . . . Parts Scanalyzed . | . . . . . . Part Schematics Acquired . | . . . . . . Parts Damaged . | . . . . . . Bothacking | -11 -10 -10 -9 -9 -7 ------------ Run | Jun Mat Min Mat Min Zio Used RIF Installer . | . . . . . . Robots Hacked . | . . . . . . Non-combat . | . . . . . . Combat . | . . . . . . Robot Hacks Applied . | . . . . . . Relay Couplers Released . | . . . . . . Fabnet Peak Effective % . | . . . . . . Robots Rewired . | . . . . . . Allies Hacked . | . . . . . . Hacks Repelled . | . . . . . . Allies | -11 -10 -10 -9 -9 -7 -------- Run | Jun Mat Min Mat Min Zio Total Allies . | . . . . . . Largest Group . | . . . . . . Highest-Rated Group . | . . . . . . Highest-Rated Ally . | . . . . . . Total Orders . | . . . . . . Ally Attacks . | . . . . . . Total Damage . | . . . . . . Kills . | . . . . . . Allies Corrupted . | . . . . . . Allies Melted . | . . . . . . Intel | -11 -10 -10 -9 -9 -7 ------- Run | Jun Mat Min Mat Min Zio Robot Analysis Total . | . . . . . . Derelict Logs Recovered 4 | . . 1 . 1 2 Drone Launches . | . . . . . . Drone Recoveries . | . . . . . . Exploration | -11 -10 -10 -9 -9 -7 ------------- Run | Jun Mat Min Mat Min Zio Turns Passed 854 | 11 51 49 28 93 622 Spaces Moved 1591 | 20 82 85 56 175 1173 Core 933 | 20 82 85 56 135 555 Treads . | . . . . . . Legs . | . . . . . . Wheels . | . . . . . . Hover . | . . . . . . Flight 658 | . . . . 40 618 Fastest Speed 37 | 50 50 50 50 37 37 Average Speed 46 | 50 50 50 50 47 46 Slowest Speed 150 | 50 50 50 50 50 150 Overloaded Moves . | . . . . . . Propulsion Burnouts . | . . . . . . Robots Hopped . | . . . . . . Cave-ins Triggered . | . . . . . . Exploration Rate (%) 34 | 3 24 32 9 55 84 Regions Visited 5 Branch Regions 3 Pre-discovered Areas 2 | . . . . . 2 Known Exits Taken 1 | . . . 1 . . Unknown Exits Taken 4 | 1 1 1 . 1 . Scrap Searched 5 | . . . . 1 4 Spaces Dug 15 | . 4 . . 11 . Terrain Destroyed 38 | . 12 . . 15 11 Melee . | . . . . . . Projectile . | . . . . . . AOE 38 | . 12 . . 15 11 Terrain Rammed . | . . . . . . Walls Destroyed . | . . . . . . Machines Disabled . | . . . . . . Actions | -11 -10 -10 -9 -9 -7 --------- Run | Jun Mat Min Mat Min Zio Total 1670 | 20 88 90 55 181 1236 Wait 32 | . 1 . . . 31 Move 1586 | 19 81 84 55 174 1173 Hop . | . . . . . . Pick Up 4 | . 1 . . . 3 Fast Attach 13 | . . . . 2 11 Attach 3 | . 1 . . 1 1 Detach 4 | . 1 . . 1 2 Swap . | . . . . . . Drop 6 | . . . . . 6 Fire 14 | . 3 . . 3 8 Melee . | . . . . . . Ram 8 | 1 . 6 . . 1 Kick . | . . . . . . Crush . | . . . . . . Escape Stasis . | . . . . . . Rewire . | . . . . . . Trap . | . . . . . . Miscellaneous . | . . . . . . Route ------- -11/Junkyard -10/Materials -10/Mines -9/Materials (discovered 2 exits: *Min x2) -9/Mines (discovered 2 exits: [*Mat] / [*Zio]) -7/Zion History --------- Turn | Location | Event 4 | -11/Junkyard | Discovered new exit (range 14) 12 | -11/Junkyard | Entered Materials 58 | -10/Materials | Discovered new exit (range 9) 63 | -10/Materials | Entered Mines 64 | -10/Mines | Joined a pair of Derelicts in attacking an 0b10 outpost 71 | -10/Mines | Learned 2 Materials zone layouts 108 | -10/Mines | Discovered new exit (range 8) 112 | -10/Mines | Entered Materials 112 | -9/Materials | Evolved 2 slots: Propulsion x1, Utility x1 128 | -9/Materials | Identified exit to Mines 140 | -9/Materials | Entered Mines 163 | -9/Mines | Learned Materials emergency access door positions 229 | -9/Mines | Discovered new exit (range 8) 230 | -9/Mines | A Derelict revealed a hidden shortcut to a safe place 233 | -9/Mines | Entered Zion 248 | -7/Zion | Found Prototype Launcher 248 | -7/Zion | Identified Gui. Missile Launcher 251 | -7/Zion | Found Prototype Launcher 251 | -7/Zion | Identified Rocket Array 303 | -7/Zion | Learned location of Extension (-4) 313 | -7/Zion | Build established: Mutant 377 | -7/Zion | Learned location of 1 exit from Factory 389 | -7/Zion | Learned location of Warlord (-5) 474 | -7/Zion | Found Prototype Hackware 474 | -7/Zion | Identified Exp. System Shield 477 | -7/Zion | Found Prototype Processor 477 | -7/Zion | Identified Spectral Analyzer 479 | -7/Zion | Found Prototype Processor 479 | -7/Zion | Identified Exp. Melee Analysis Suite 481 | -7/Zion | Found Prototype Processor 481 | -7/Zion | Identified Exp. Targeting Computer 494 | -7/Zion | Found Prototype Processor 494 | -7/Zion | Identified Exp. Target Analyzer 497 | -7/Zion | Found Prototype Processor 497 | -7/Zion | Identified Exp. Armor Integrity Analyzer 499 | -7/Zion | Found Prototype Processor 499 | -7/Zion | Identified Exp. Signal Interpreter 659 | -7/Zion | Attacked by Zionites 683 | -7/Zion | Destroyed Imprinter 798 | -7/Zion | Core integrity fell below 50% 843 | -7/Zion | Core integrity fell below 20% 855 | -7/Zion | Destroyed by OC-48E(M) with Riot Gun Last Messages --------------- 00737_ DQ-V4O(z) toys with the Twisted Machinery. 00739_ DQ-V4O(z) pulls a Mak. Shrapnel Gun out of the Twisted Machinery. 00750_ 7Y-MWC(z) pulls a Mak. Sword out of the Twisted Machinery. 00751_ VU-TN5(z) pulls a Mak. Sword out of the Twisted Machinery. 00755_ P6-KQS(z) pulls a Mak. Shrapnel Gun out of the Twisted Machinery. 00756_ TF-PFG(z) pulls a Mak. Hammer out of the Twisted Machinery. 00760_ Broken Flight Unit destroyed. 00760_ IU-STF(z) pulls a Mak. Spear out of the Twisted Machinery. 00764_ U4-SD4(z) pulls a Mak. Sword out of the Twisted Machinery. 00772_ YW-4KP(z) pulls a Mak. Shrapnel Gun out of the Twisted Machinery. 00774_ JV-AB7(z) pulls a Mak. Spear out of the Twisted Machinery. 00774_ PI-4AX(z) pulls a Mak. Axe out of the Twisted Machinery. 00785_ Acquired 18 matter. 00785_ 4U-RB9(z) pulls a Mak. Sword out of the Twisted Machinery. 00794_ UE-XW9(z) pulls a Mak. Hammer out of the Twisted Machinery. 00795_ KU-KNT(z) pulls a Mak. Laser out of the Twisted Machinery. 00800_ G3-BE0(z) pulls a Mak. Shrapnel Gun out of the Twisted Machinery. 00802_ Z7-70O(z) pokes at the Twisted Machinery. 00841_ Slammed into E7-ISB(M). 00841_ Destabilizing: System corrupted (+1). Map ----- +----------------------------------------------------+ | ??????????????????????????#"""" "#" | | ??????????????????????????##"" """ | | ???????????????????????????##" """ "" | | ??????????????????????????##"" "" | | ?????????????????????????#""" | | ?????????????????????????##"" | | ?????????????????????????#""" | | ?????????????????????????#"" """ | | ?????????????????????????##""""""""""""" | | ??????????????????????????#""#"##"""#"""" " | | ??????????????????????????#""""?#""""""""" " | | ?????????????????????????????#?##" """" | | ???????????????????????????????#"" "" | | ???????????????????????????????#""" | | ????????????????????????????####""" | | ??????????????????##?########"###"" " | | ??????????????????#"##""""#""""""" "" | | ???????????????"###""""""""" """ "" | | ?????????##????#"""""""""""" """ """ | | ?????????"""???#""" """ """ """" | | ?????""""""""??#""" "" """"" | | ?????? ?#""" """ | | ???????""" ##"" c """""""" """ | | ????????""" """"#"""""" "" | | ????????""" c""########"""" " | | ????????""" @ ""#??????###"" | | ???????""" ###" "##????##?##"" """""= | | ?????? ??#""M """#???#"##""" ""#""" | | ?????"""""""????#"" ""##???##""""" "" ##" | | ???????????????#""" "##????#"" " #""" | | ???????????????##"" ""#????##" """""" | | ????????????????"## ""#?????#""" """" | | ???????????????##?# #"#?????##""" """ | | ?????????????????? #"#?######"#" | | ?????????????????? #???#"#"##"#" "" | | ????????????????? #???#""""##"" """" | | ?????????????????## #???#"" "##"" "#"" | | ??????????????????######??##" """""" """"" | | ??????????????????????????#""" """"""""#"" | | ??????????????????????????#"#"" """""""""" | | ????????????????????????????#""" ""###"" | | ????????????????????????????##"" ""#"""" "" | | ????????????????????????????##"" """ """" | | ????????????????????????????#"" "" """"" | | ??????????????????????????"##"" """#"" | | ??????????????????????????""""" """##" | | ??????????????????????????##""" """"#" | | ??????????????????????????#"##" """#"" | | ????????????????????????????#"" ""#"" | | ????????????????????????????##" """" | +----------------------------------------------------+ Best States ------------- Heat Dissipation 28 Energy Generation 5 Energy Capacity 100 Matter Stores 300 Matter Capacity 300 Sight Range 16 Terrain Scan Density 10 Evasion (%) 62 Melee Accuracy 12 Core Analysis 6 Armor Integrity Analysis 50 Defensive Hacking 16 Item Schematics ----------------- Ripper | -7/Zion | Archive Imp. System Shield | -7/Zion | Archive Gauss Cannon | -7/Zion | Archive Armor Integrity Analyzer | -7/Zion | Archive Adv. Sensor Array | -7/Zion | Archive Proton Cannon | -7/Zion | Archive Adv. Shield Generator | -7/Zion | Archive Mak. Laser | -7/Zion | Archive Bore Cannon | -7/Zion | Archive Mak. Trap Scanner | -7/Zion | Archive Proton Missile Launcher | -7/Zion | Archive Mak. Terrain Scan Processor | -7/Zion | Archive Drone Bay | -7/Zion | Archive Energy Well | -7/Zion | Archive Imp. Deuterium Engine | -7/Zion | Archive Robot Schematics ------------------ K-01 Serf | -7/Zion | Archive T-07 Excavator | -7/Zion | Archive Y-54 Guardian | -7/Zion | Archive Fabricated ------------ Nothing Alien Tech Used ----------------- None Achievements -------------- None Challenges ------------ None Game ------ Seed FlightPhaseStorage Manual? 0 Play Time 00:11:30 Cumulative 286.0 hours Start 2023.06.10 @ 23:15:09 End 2023.06.10 @ 23:25:19 Sessions 1 Manual Loads 0 Difficulty Rogue Special Mode None Game No. 843 Rogue 843 Adventurer 0 Explorer 0 Win Type - Total 17 Types 8/0/7/2/0/0/0/0/0 Lore% 90 Gallery% 87 Achievement% 79 Wizard Run 0 Options --------- ASCII 0 Keyboard 0 Movement Numpad Keybinds 0 Fullscreen 1 Font 16/SmallcapsGlow Map View 75x55 Tactical HUD 1 Map Filters NONE Filters NONE Steam 1 RUN: 4aedda65-9f64-4eeb-92f4-53baced17368